bitfinex-derivatives/quotes_SOLF0:USTF0_20240918
["timestamp","ask_amount","ask_price","bid_price","bid_amount"]
[1726653953921,154.58,129.5,129.44,4.2885]
[1726653954613,154.58,129.54,129.44,4.2885]
[1726653954815,2.8507,129.53,129.44,4.2885]
[1726653955924,154.58,129.54,129.44,4.2885]
[1726653957119,3.8609,129.49,129.44,8.1504]
[1726653958123,3.8609,129.49,129.45,19.63426868]
[1726653958323,154.58,129.54,129.45,19.63426868]
[1726653958529,154.56,129.57,129.44,4.2885]
[1726653958723,154.56,129.57,129.45,19.6333875]
[1726653958913,3.8607,129.5,129.45,3.8617]
[1726653959119,154.56,129.57,129.45,3.8617]
[1726653959823,3.8607,129.49,129.45,3.8617]
[1726653960421,7.7173,129.56,129.44,4.2885]
[1726653960726,154.56,129.57,129.44,4.2885]
[1726653961024,7.718,129.55,129.44,4.2885]
[1726653961230,2.8766,129.54,129.44,4.2885]
[1726653962418,3.8619,129.45,129.44,2.8626]
[1726653962618,3.8619,129.45,129.44,3.84042187]
[1726653964730,3.8622,129.44,129.43,732.50215218]
[1726653968931,3.8648,129.36,129.31,3.84930726]
[1726653969233,235.2393,129.46,129.32,4.4645]
[1726653969427,9.2393,129.46,129.35,3.8648]
[1726653969627,3.8634,129.4,129.35,3.8648]
[1726653969828,154.56,129.47,129.35,3.81196458]
[1726653970127,154.56,129.47,129.32,4.4645]
[1726653970333,154.56,129.47,129.32,8.35802253]
[1726653970633,154.56,129.47,129.37,3.8642]
[1726653970934,154.56,129.47,129.38,4.33]
[1726653971135,3.8631,129.41,129.38,4.33]
[1726653971824,1.5555,129.41,129.38,4.33]
[1726653973328,3.8634,129.4,129.38,4.33]
[1726653973837,3.8632,129.41,129.38,4.33]
[1726653975334,3.8634,129.4,129.38,4.33]
[1726653977231,154.56,129.47,129.38,4.33]
[1726653977939,3.8629,129.42,129.38,8.1938]
[1726653978534,1.5231,129.49,129.38,8.1938]
[1726653978535,3.8631,129.41,129.38,8.1938]
[1726653978840,3.8631,129.41,129.38,4.33]
[1726653979143,1.5231,129.49,129.38,4.33]
[1726653979144,3.8637,129.4,129.38,4.33]
[1726653980330,3.8637,129.4,129.39,19.64649864]
[1726653980532,3.8637,129.4,129.39,23.52937277]
[1726653982335,3.8637,129.4,129.39,41.06431376]
[1726653983042,3.8637,129.4,129.39,23.52937277]
[1726653983341,3.8637,129.4,129.39,41.06473742]
[1726653984542,1.5231,129.49,129.39,41.06473742]
[1726653984738,1.5231,129.49,129.4,19.64649864]
[1726653984933,1.5231,129.49,129.38,4.33]
[1726653985135,154.62,129.5,129.39,37.17741813]
[1726653985341,154.62,129.5,129.4,37.17741813]
[1726653985545,154.62,129.5,129.42,3.8626]
[1726653985742,3.8618,129.46,129.43,37.17741813]
[1726653985938,3.8618,129.46,129.43,1.4824]
[1726653986242,3.8618,129.46,129.44,37.16697683]
[1726653986540,3.8619,129.45,129.43,1.4824]
[1726653986744,3.8619,129.45,129.44,19.63718068]
[1726653987339,3.8619,129.45,129.44,37.16600092]
[1726653988541,3.8619,129.45,129.43,1.4824]
[1726653989639,3.8617,129.46,129.43,2.9828]
[1726653990036,3.8617,129.46,129.43,6.845]
[1726653990248,3.8613,129.47,129.44,1.535]
[1726653990845,3.8613,129.47,129.44,5.3971]
[1726653991242,3.8616,129.46,129.44,1.535]
[1726653992142,3.8619,129.45,129.44,1.535]
[1726653992343,1.474,129.53,129.43,2.9828]
[1726653992537,7.7198,129.52,129.43,2.9828]
[1726653992742,3.8622,129.44,129.43,2.9828]
[1726653993135,3.862,129.45,129.43,2.9828]
[1726653993342,7.7198,129.52,129.43,2.9828]
[1726653994546,3.8617,129.46,129.43,2.9828]
[1726653995049,1.474,129.53,129.43,6.8452]
[1726653996146,3.8614,129.47,129.43,6.8452]
[1726653996543,1.474,129.53,129.43,2.9828]
[1726653997344,1.474,129.53,129.44,3.8621]
[1726653997545,1.474,129.53,129.43,2.9828]
[1726653998146,3.8609,129.49,129.44,3.862]
[1726653998339,1.474,129.53,129.43,2.9828]
[1726653998340,1.474,129.53,129.45,1.521]
[1726653998747,3.8605,129.5,129.46,3.8614]
[1726653999445,3.8605,129.5,129.46,7.68096051]
[1726653999950,3.8602,129.51,129.47,3.8612]
[1726654000752,3.8599,129.52,129.48,5.2579]
[1726654000953,3.8599,129.52,129.48,1.397]
[1726654001151,3.8594,129.54,129.5,3.8602]
[1726654001347,1.4737,129.59,129.49,1.4572]
[1726654001542,1.4737,129.59,129.5,1.5046]
[1726654004355,1.4864,129.6,129.51,3.8599]
[1726654005957,3.8585,129.57,129.51,3.8599]
[1726654006153,3.8585,129.57,129.52,3.8597]
[1726654006456,3.8585,129.57,129.53,1.451]
[1726654006752,1.4318,129.63,129.53,1.451]
[1726654007759,3.8582,129.58,129.53,5.3104]
[1726654008956,3.8582,129.58,129.54,3.8591]
[1726654009151,3.8582,129.58,129.54,5.2665]
[1726654009460,3.8582,129.58,129.54,1.4074]
[1726654010247,3.8583,129.57,129.54,5.2666]
[1726654015953,1.4318,129.63,129.54,1.4074]
[1726654016563,3.8579,129.59,129.56,3.8584]
[1726654016860,1.4318,129.63,129.56,3.92633113]
[1726654017059,1.4318,129.63,129.55,1.525]
[1726654017060,3.8579,129.59,129.55,5.3837]
[1726654017767,3.8579,129.59,129.55,9.32817463]
[1726654018360,3.8579,129.59,129.56,3.8585]
[1726654018960,3.8579,129.59,129.55,5.46947463]
[1726654018961,1.4318,129.63,129.55,9.32817463]
[1726654019162,1.4318,129.63,129.55,5.46947463]
[1726654019668,1.4318,129.63,129.55,9.32817463]
[1726654019862,1.4318,129.63,129.55,5.46947463]
[1726654020059,1.4318,129.63,129.56,3.8584]
[1726654020463,1.5317,129.66,129.56,3.8584]
[1726654020660,2.9647,129.66,129.55,9.32827463]
[1726654021261,3.8576,129.6,129.56,3.8585]
[1726654021462,154.44,129.7,129.55,1.525]
[1726654021670,154.44,129.7,129.6,3.8572]
[1726654021671,3.8561,129.65,129.6,3.8572]
[1726654021863,3.0035,129.69,129.6,3.91560592]
[1726654022068,3.0035,129.69,129.55,1.525]
[1726654022267,3.8571,129.62,129.55,1.525]
[1726654022562,3.8571,129.62,129.55,5.3082043]
[1726654022868,3.8571,129.62,129.55,1.525]
[1726654023071,3.8566,129.63,129.59,3.8575]
[1726654023463,3.8566,129.63,129.55,5.36839603]
[1726654024072,3.8566,129.63,129.59,3.8574]
[1726654024259,3.8568,129.62,129.59,3.8574]
[1726654025471,3.8568,129.62,129.55,5.36839603]
[1726654025472,3.0035,129.69,129.55,5.36839603]
[1726654025674,7.7102,129.68,129.55,5.36839603]
[1726654025970,3.8575,129.6,129.57,3.8582]
[1726654027170,3.8577,129.59,129.56,3.8585]
[1726654027364,3.0035,129.69,129.55,5.36839603]
[1726654027769,3.856,129.65,129.55,9.22719603]
[1726654027966,3.856,129.65,129.55,5.36839603]
[1726654027967,2.9637,129.64,129.55,5.36839603]
[1726654028561,3.8579,129.59,129.55,9.22709603]
[1726654029172,3.8579,129.59,129.56,3.8585]
[1726654029469,3.8579,129.59,129.56,7.76801405]
[1726654029659,3.8579,129.59,129.56,3.8585]
[1726654030059,3.858,129.58,129.55,5.3837]
[1726654030868,3.858,129.58,129.55,9.33644295]
[1726654032170,3.8583,129.57,129.55,5.47774295]
[1726654032370,2.9637,129.64,129.55,3.95274295]
[1726654032570,2.9637,129.64,129.55,3.8589]
[1726654032770,2.9637,129.64,129.55,3.76361649]
[1726654033065,3.8582,129.58,129.54,5.2664]
[1726654033468,3.8582,129.58,129.54,9.18517738]
[1726654033674,3.8584,129.57,129.54,9.18517738]
[1726654033873,2.9637,129.64,129.54,5.32617738]
[1726654034174,2.9637,129.64,129.54,3.91877738]
[1726654034175,7.7131,129.63,129.54,3.91877738]
[1726654034370,3.8589,129.55,129.53,1.451]
[1726654034574,7.7137,129.62,129.53,1.451]
[1726654034971,7.7137,129.62,129.53,5.23082733]
[1726654035367,7.7137,129.62,129.53,1.451]
[1726654035567,3.8591,129.55,129.53,1.451]
[1726654035870,3.8591,129.55,129.53,5.23546976]
[1726654036070,3.8587,129.56,129.53,1.451]
[1726654036473,7.7137,129.62,129.53,1.451]
[1726654036675,7.7137,129.62,129.53,5.24975515]
[1726654037269,3.8589,129.55,129.53,5.24975515]
[1726654037975,3.8587,129.56,129.53,5.24975515]
[1726654038375,7.7137,129.62,129.53,5.24975515]
[1726654039781,3.8585,129.57,129.53,5.24975515]
[1726654039977,7.7137,129.62,129.53,5.24975515]
[1726654040569,3.8586,129.56,129.53,5.24975515]
[1726654042270,3.8586,129.56,129.53,9.10925515]
[1726654042475,3.8586,129.56,129.53,5.24975515]
[1726654043678,7.7137,129.62,129.53,9.10905515]
[1726654043871,7.7137,129.62,129.53,5.24975515]
[1726654044272,3.8586,129.56,129.53,5.24975515]
[1726654045773,7.7137,129.62,129.53,5.24975515]
[1726654046070,7.7137,129.62,129.53,3.79875515]
[1726654046276,7.7137,129.62,129.5,3.0616]
[1726654046573,3.8592,129.54,129.5,6.9218]
[1726654046777,3.8592,129.54,129.5,10.71438444]
[1726654047173,3.859,129.55,129.51,3.8601]
[1726654047370,7.7137,129.62,129.5,6.85418444]
[1726654047778,7.7137,129.62,129.52,3.8596]
[1726654047779,3.8588,129.56,129.52,3.8596]
[1726654047983,7.7137,129.62,129.5,6.85418444]
[1726654048485,3.8591,129.55,129.51,3.8599]
[1726654048981,7.7143,129.61,129.5,6.85418444]
[1726654049384,3.8601,129.51,129.5,3.79258444]
[1726654049580,7.7149,129.6,129.47,3.8611]
[1726654049881,3.0277,129.59,129.47,3.8611]
[1726654051583,3.86,129.52,129.47,3.8611]
[1726654053787,3.8601,129.51,129.47,3.8611]
[1726654055390,3.8601,129.51,129.45,4.3951]
[1726654055391,3.8601,129.51,129.48,3.8609]
[1726654055984,3.0277,129.59,129.45,4.3951]
[1726654056487,3.0277,129.59,129.5,3.8602]
[1726654056488,3.8597,129.53,129.5,3.8602]
[1726654056686,3.8597,129.53,129.5,7.63889563]
[1726654058085,3.8593,129.54,129.5,3.77869563]
[1726654058289,3.8593,129.54,129.51,1.5375]
[1726654058593,3.0277,129.59,129.52,3.8596]
[1726654058788,3.0277,129.59,129.52,7.69785583]
[1726654059186,3.8592,129.55,129.52,7.69785583]
[1726654059496,3.0277,129.59,129.52,3.83825583]
[1726654059791,3.0277,129.59,129.51,1.5375]
[1726654059987,154.46,129.6,129.52,2.9965]
[1726654060191,154.46,129.6,129.53,3.8594]
[1726654060491,154.46,129.6,129.53,3.81238428]
[1726654060793,154.46,129.6,129.52,2.9965]
[1726654060794,154.46,129.6,129.52,6.856]
[1726654061196,154.46,129.6,129.52,10.77829824]
[1726654062496,3.8586,129.56,129.52,10.77829824]
[1726654064996,3.8589,129.55,129.52,10.77829824]
[1726654067304,3.8592,129.54,129.52,10.77829824]
[1726654071211,3.8595,129.53,129.52,6.91879824]
[1726654071416,3.8595,129.53,129.52,3.92229824]
[1726654071715,3.8595,129.53,129.52,19.62235345]
[1726654071911,3.8595,129.53,129.52,23.41107022]
[1726654072113,604.72321223,129.24,129.21,10.74758657]
[1726654072412,2.8138,129.6,129.06,12.73053733]
[1726654072413,154.46,129.37,129.06,12.73053733]
[1726654072616,491.46,129.36,129.06,12.73053733]
[1726654072821,3.8714,129.13,129.06,8.80823287]
[1726654073014,337.0,129.32,129.06,8.80823287]
[1726654073212,16.75595831,129.31,129.06,12.66992095]
[1726654073516,6.44360448,129.3,129.06,12.66992095]
[1726654073921,11.31236654,129.29,129.06,12.66992095]
[1726654074307,6.44360448,129.3,129.06,12.66992095]
[1726654074606,6.44360448,129.29,129.06,12.66992095]
[1726654074809,17.40429205,129.31,129.06,12.66992095]
[1726654075012,6.44360448,129.3,129.06,12.66992095]
[1726654075211,8.08755319,129.29,129.06,12.66992095]
[1726654075610,14.53115767,129.29,129.06,16.54332095]
[1726654075819,8.08755319,129.29,129.06,12.66992095]
[1726654076916,8.08755319,129.29,129.07,3.8732]
[1726654077313,8.08755319,129.29,129.06,12.66992095]
[1726654077519,337.0,129.28,129.06,12.66992095]
[1726654078620,337.0,129.28,129.08,3.8729]
[1726654079515,491.68,129.28,129.08,3.8729]
[1726654081014,491.68,129.28,129.07,3.8732]
[1726654081215,491.68,129.28,129.06,12.66992095]
[1726654082017,491.68,129.28,129.08,3.8727]
[1726654082417,491.68,129.28,129.06,15.73716085]
[1726654082723,491.68,129.28,129.06,11.86366085]
[1726654083523,337.0,129.27,129.12,3.8716]
[1726654084017,337.0,129.27,129.14,3.8711]
[1726654084216,337.0,129.27,129.14,3.96281049]
[1726654084417,337.0,129.27,129.06,166.66366085]
[1726654085017,337.0,129.27,129.12,3.8715]
[1726654086127,154.68,129.28,129.06,166.66366085]
[1726654086321,491.68,129.28,129.07,1.42293407]
[1726654087024,491.68,129.28,129.13,3.8714]
[1726654087225,154.68,129.28,129.13,7.74561559]
[1726654087525,154.68,129.28,129.14,3.871]
[1726654088824,154.68,129.28,129.13,7.74203053]
[1726654089028,337.0,129.29,129.13,7.74203053]
[1726654089221,337.0,129.29,129.13,3.87073053]
[1726654089427,337.0,129.29,129.06,166.66366085]
[1726654089623,337.0,129.28,129.12,3.8717]
[1726654089927,337.0,129.28,129.06,166.66366085]
[1726654089928,337.0,129.27,129.06,166.66366085]
[1726654090126,337.0,129.26,129.11,3.8718]
[1726654091428,337.0,129.26,129.12,3.8717]
[1726654091628,380.86,129.3,129.12,3.8717]
[1726654091923,380.86,129.3,129.13,3.8714]
[1726654092127,380.86,129.3,129.13,7.76915116]
[1726654092327,380.86,129.3,129.13,7.04351707]
[1726654092728,380.86,129.3,129.13,3.89775116]
[1726654092928,380.86,129.3,129.06,11.86366085]
[1726654093124,337.0,129.29,129.11,3.8719]
[1726654093323,337.0,129.29,129.12,1.4231171]
[1726654093524,337.0,129.28,129.13,1.4231235]
[1726654093830,337.0,129.28,129.13,3.77887226]
[1726654094030,3.8702,129.18,129.12,3.8716]
[1726654094231,3.8702,129.18,129.13,1.42309576]
[1726654094426,3.8707,129.16,129.14,3.9186584]
[1726654094633,3.8707,129.16,129.1,3.8721]
[1726654094930,3.8707,129.16,129.11,1.42315553]
[1726654095133,3.93608326,129.25,129.06,11.86366085]
[1726654095325,337.0,129.24,129.07,1.1537197]
[1726654095524,344.7364,129.24,129.07,3.8731]
[1726654096227,3.8716,129.13,129.07,3.8731]
[1726654096431,226.0,129.22,129.08,1.4234949]
[1726654096631,3.8717,129.13,129.09,1.4234949]
[1726654097028,3.8717,129.13,129.07,3.8731]
[1726654097232,3.8719,129.12,129.08,1.42354317]
[1726654097435,337.0,129.22,129.06,11.86366085]
[1726654097635,337.0,129.23,129.06,11.86366085]
[1726654098333,3.8716,129.13,129.06,11.86366085]
[1726654098535,337.0,129.22,129.06,11.86366085]
[1726654098833,3.8718,129.12,129.06,11.86366085]
[1726654099035,3.8718,129.12,129.07,3.8729]
[1726654100435,3.8721,129.11,129.07,3.8729]
[1726654100635,154.92,129.2,129.06,11.86366085]
[1726654101030,3.8725,129.1,129.06,11.86366085]
[1726654101433,162.6591,129.2,129.06,11.86366085]
[1726654102332,162.6591,129.2,129.06,15.08389017]
[1726654102529,162.6591,129.2,129.06,11.21059017]
[1726654103231,3.8721,129.11,129.06,11.21059017]
[1726654104436,3.8721,129.11,129.07,3.8732]
[1726654104841,162.6591,129.2,129.07,3.8732]
[1726654104842,3.8723,129.1,129.07,3.8732]
[1726654105035,162.6591,129.2,129.06,15.08409017]
[1726654105339,3.8725,129.1,129.06,15.08409017]
[1726654106041,3.8725,129.1,129.06,11.21059017]
[1726654107131,3.8725,129.1,129.06,15.08399017]
[1726654109643,3.8722,129.11,129.07,3.8732]
[1726654109842,154.94,129.18,129.06,11.21059017]
[1726654110040,3.8725,129.1,129.06,15.08399017]
[1726654110543,3.8728,129.09,129.06,11.21059017]
[1726654111438,3.8726,129.1,129.06,11.21059017]
[1726654111640,154.96,129.17,129.06,11.21059017]
[1726654112239,3.8727,129.09,129.06,11.21059017]
[1726654112443,3.8727,129.09,129.06,10.62282656]
[1726654112643,3.8727,129.09,129.06,14.49612656]
[1726654112843,154.96,129.17,129.06,14.49612656]
[1726654113045,154.96,129.17,129.06,10.62282656]
[1726654113243,154.96,129.17,129.07,3.873]
[1726654113642,154.96,129.17,129.06,10.62282656]
[1726654113843,3.8722,129.11,129.06,10.62282656]
[1726654114150,154.96,129.17,129.06,10.62282656]
[1726654114541,3.8716,129.13,129.08,3.8728]
[1726654114743,154.96,129.17,129.06,10.62282656]
[1726654115248,3.872,129.12,129.06,10.62282656]
[1726654116048,3.872,129.12,129.08,3.8728]
[1726654116848,3.8715,129.13,129.09,3.8726]
[1726654117243,154.98,129.19,129.06,10.62282656]
[1726654117444,3.8731,129.08,129.06,10.62282656]
[1726654117846,7.7413,129.16,129.06,10.62282656]
[1726654118248,11.611,129.17,128.93,3.51919775]
[1726654118442,348.611,129.17,128.93,3.51919775]
[1726654118642,1.0,129.16,128.93,7.44886396]
[1726654118839,11.6127,129.15,128.93,3.49769775]
[1726654119043,15.41201747,129.15,128.93,3.49769775]
[1726654119244,1.0,129.16,128.93,3.49769775]
[1726654119449,1.0,129.16,128.8,2.67905958]
[1726654119652,24.81405316,129.15,128.8,2.67905958]
[1726654119951,7.7486,129.04,128.8,2.67905958]
[1726654120152,155.04,129.03,128.83,6.96849038]
[1726654120448,155.04,129.03,128.83,3.05445738]
[1726654121250,158.98004115,129.03,128.83,6.88541956]
[1726654121448,158.98004115,129.03,128.83,3.05445738]
[1726654121851,158.98004115,129.03,128.83,6.89590046]
[1726654122446,155.04,129.03,128.84,47.37376561]
[1726654122648,155.04,129.03,128.85,37.67178322]
[1726654122847,155.04,129.03,128.86,37.67178322]
[1726654123051,155.04,129.03,128.87,37.67178322]
[1726654123247,155.04,129.03,128.88,37.67178322]
[1726654123448,155.04,129.03,128.83,6.36691321]
[1726654123653,155.04,129.03,128.84,9.20020124]
[1726654123852,155.04,129.03,128.85,7.73550124]
[1726654124053,155.04,129.03,128.86,7.73550124]
[1726654124247,155.04,129.03,128.85,2.9969]
[1726654124648,155.04,129.03,128.91,3.8778]
[1726654124849,155.04,129.03,128.92,3.83908608]
[1726654125049,155.04,129.03,128.85,10.732205]
[1726654125253,155.04,129.03,128.85,10.1922128]
[1726654125451,155.04,129.03,128.85,2.4569078]
[1726654125647,155.04,129.03,128.91,3.8779]
[1726654125851,155.04,129.03,128.91,3.82123528]
[1726654126053,155.04,129.03,128.85,2.4569078]
[1726654128345,155.04,129.03,128.86,1.42555368]
[1726654128655,155.04,129.03,128.87,1.42555368]
[1726654128950,155.04,129.03,128.88,1.42555368]
[1726654129250,155.04,129.03,128.89,1.42555368]
[1726654129455,155.04,129.03,128.9,1.42555368]
[1726654129652,155.04,129.03,128.9,3.88306913]
[1726654129848,3.8757,128.99,128.93,3.8772]
[1726654130249,155.04,129.03,128.85,2.4569078]
[1726654130446,3.8759,128.99,128.92,3.8775]
[1726654130651,155.04,129.03,128.92,7.71479469]
[1726654130846,155.04,129.03,128.92,3.83729469]
[1726654131147,3.8761,128.98,128.85,2.4569078]
[1726654131352,155.04,129.03,128.86,1.42540727]
[1726654131553,3.876,128.98,128.93,3.8774]
[1726654131751,3.876,128.98,128.93,7.76008121]
[1726654131950,155.04,129.03,128.85,2.4569078]
[1726654132551,155.04,129.03,128.86,1.42558273]
[1726654132955,3.8768,128.96,128.85,2.4569078]
[1726654133361,381.04,129.03,128.85,2.4569078]
[1726654133555,3.8769,128.95,128.86,1.42559293]
[1726654134158,3.8766,128.96,128.92,3.8777]
[1726654134357,3.8766,128.96,128.92,7.8193449]
[1726654134758,3.8763,128.97,128.93,3.8774]
[1726654135559,3.8765,128.96,128.93,3.84699266]
[1726654135760,3.8765,128.96,128.92,3.8777]
[1726654136157,381.04,129.03,128.93,3.8773]
[1726654136352,155.04,129.03,128.85,2.4569078]
[1726654136559,8.3049,129.08,128.86,1.42533091]
[1726654136560,155.16,129.05,128.86,1.42533091]
[1726654136755,3.8761,128.98,128.85,2.4569078]
[1726654137061,3.8761,128.98,128.86,1.42535374]
[1726654137256,3.8757,128.99,128.87,1.42535374]
[1726654137458,3.8757,128.99,128.88,1.42535374]
[1726654137658,155.16,129.05,128.89,1.42530376]
[1726654137860,155.16,129.05,128.95,3.8768]
[1726654138063,3.876,128.98,128.95,3.93822996]
[1726654138261,3.876,128.98,128.85,2.4569078]
[1726654138464,3.876,128.98,128.94,3.877]
[1726654138665,3.8763,128.97,128.94,3.877]
[1726654138865,155.16,129.05,128.94,3.877]
[1726654139065,155.16,129.05,128.95,3.8768]
[1726654139258,3.8758,128.99,128.95,3.8768]
[1726654139459,155.16,129.05,128.94,3.89487812]
[1726654139655,155.16,129.05,128.85,2.4569078]
[1726654139862,3.8766,128.96,128.86,1.42531058]
[1726654140066,3.8766,128.96,128.87,1.42531481]
[1726654140362,3.8766,128.96,128.85,2.4569078]
[1726654140363,155.16,129.05,128.88,1.42531481]
[1726654140561,155.16,129.05,128.94,3.877]
[1726654140756,155.16,129.05,128.94,7.68654918]
[1726654141159,155.16,129.05,128.94,3.80954918]
[1726654141359,3.8756,128.99,128.85,2.4569078]
[1726654141560,3.8756,128.99,128.86,1.42520099]
[1726654141759,155.16,129.05,128.87,1.42520099]
[1726654141955,3.8764,128.97,128.88,1.42520099]
[1726654142159,3.8764,128.97,128.93,3.8773]
[1726654142465,155.16,129.05,128.85,2.4569078]
[1726654142466,3.877,128.95,128.85,2.02842813]
[1726654142666,3.877,128.95,128.91,3.8779]
[1726654142862,155.16,129.05,128.85,2.02842813]
[1726654143171,155.16,129.05,128.83,161.52691321]
[1726654143172,337.0,129.04,128.83,6.36691321]
[1726654143563,11.6235,129.03,128.83,6.36691321]
[1726654144174,348.6235,129.03,128.83,1.51707013]
[1726654144462,337.0,129.03,128.83,1.51707013]
[1726654144669,3.8802,128.84,128.83,1.51707013]
[1726654146564,3.8802,128.84,128.83,7.013e-05]
[1726654148968,155.16,128.87,128.83,7.013e-05]
[1726654150669,3.8797,128.86,128.83,7.013e-05]
[1726654150874,155.16,128.87,128.83,7.013e-05]
[1726654151269,3.8797,128.86,128.83,7.013e-05]
[1726654152072,1.0,128.96,128.84,3.87327395]
[1726654152277,155.28,128.95,128.83,7.013e-05]
[1726654152470,155.28,128.95,128.8,2.67905958]
[1726654152471,155.28,128.95,128.8,2.29349801]
[1726654153580,3.8792,128.88,128.82,3.8806]
[1726654153872,155.28,128.95,128.8,2.29349801]
[1726654154777,3.8805,128.83,128.8,2.29349801]
[1726654154975,226.0,128.94,128.8,2.29349801]
[1726654155178,3.8799,128.85,128.8,6.17469801]
[1726654155476,155.28,128.95,128.8,6.17469801]
[1726654155477,155.28,128.95,128.8,2.29349801]
[1726654155681,3.8794,128.87,128.8,2.29349801]
[1726654155875,155.28,128.95,128.8,2.29349801]
[1726654156179,3.8811,128.81,128.8,2.29349801]
[1726654160882,3.8809,128.82,128.8,2.29349801]
[1726654162288,3.8805,128.83,128.8,1.94642948]
[1726654162683,3.8808,128.82,128.8,1.94642948]
[1726654163783,155.32,128.87,128.8,1.94642948]
[1726654164385,3.8799,128.85,128.81,3.8809]
[1726654164587,3.8799,128.85,128.8,1.94642948]
[1726654164986,155.32,128.87,128.8,1.94642948]
[1726654165485,3.88,128.85,128.8,5.82752948]
[1726654165687,155.32,128.87,128.8,5.82752948]
[1726654165883,155.32,128.87,128.8,1.94642948]
[1726654166089,3.8801,128.85,128.81,3.8808]
[1726654166884,226.0,128.93,128.8,1.94642948]
[1726654167085,155.32,128.97,128.81,1.42635352]
[1726654167293,155.32,128.97,128.82,1.42635352]
[1726654167585,155.32,128.97,128.86,3.8794]
[1726654168184,3.8785,128.9,128.86,7.84438688]
[1726654169494,3.8787,128.89,128.86,7.84438688]
[1726654171793,3.8785,128.9,128.87,3.8792]
[1726654172887,3.8785,128.9,128.86,3.96498688]
[1726654173087,3.8785,128.9,128.8,1.94642948]
[1726654173288,3.8785,128.9,128.81,1.42601655]
[1726654173487,3.8785,128.9,128.82,1.42601655]
[1726654173684,3.8785,128.9,128.83,1.42601655]
[1726654173891,155.32,128.97,128.8,1.94642948]
[1726654174099,155.32,128.97,128.81,1.42601514]
[1726654174293,155.32,128.97,128.82,1.42601514]
[1726654174492,3.8782,128.91,128.83,1.42601514]
[1726654174692,3.8782,128.91,128.8,1.94642948]
[1726654174894,3.8782,128.91,128.81,1.42600667]
[1726654175097,3.8782,128.91,128.88,3.8789]
[1726654175300,3.8782,128.91,128.88,7.68139895]
[1726654179297,155.28,129.0,128.88,3.80249895]
[1726654179496,155.28,129.0,128.82,7.761]
[1726654179697,155.28,129.0,128.83,1.42565179]
[1726654180099,155.28,129.0,128.9,3.8782]
[1726654180298,337.0,128.99,128.8,1.94642948]
[1726654180595,155.28,129.0,128.8,1.94642948]
[1726654180596,337.0,128.98,128.8,1.94642948]
[1726654181002,3.8811,128.81,128.8,1.94642948]
[1726654183501,3.8811,128.81,128.8,2.948e-05]
[1726654185308,3.6106864,128.81,128.8,2.948e-05]
[1726654186002,3.8826,128.76,128.73,8.42462618]
[1726654186299,3.8826,128.76,128.45,3.11821319]
[1726654186300,20.0,128.76,128.52,351.0]
[1726654186500,155.24,128.84,128.56,2.9392]
[1726654186703,7.765,128.77,128.56,2.9392]
[1726654186904,3.8248217,128.77,128.56,2.9392]
[1726654187108,3.8875,128.6,128.56,2.9392]
[1726654187404,155.32,128.67,128.56,349.9392]
[1726654187604,155.32,128.66,128.56,353.82541156]
[1726654188299,155.4,128.67,128.56,346.9716]
[1726654191206,155.46,128.75,128.56,346.9716]
[1726654191607,155.46,128.75,128.57,1.42849079]
[1726654191807,3.8838,128.72,128.66,3.8853]
[1726654192010,3.8838,128.72,128.53,4.2572]
[1726654192011,155.46,128.75,128.61,346.9716]
[1726654192203,155.46,128.75,128.62,4.5336]
[1726654193109,3.8835,128.73,128.62,4.5336]
[1726654193304,155.46,128.75,128.62,4.5336]
[1726654193609,3.8832,128.74,128.69,3.8846]